bitfinex-derivatives/quotes_BNBF0:USTF0_20250331
["timestamp","ask_amount","ask_price","bid_price","bid_amount"]
[1743437863890,0.30463346,603.93,602.63,0.33187859]
[1743437864094,0.28844839,603.94,602.63,0.33187859]
[1743437864095,0.30463346,603.92,602.63,0.33187859]
[1743437864295,0.30463346,603.93,602.63,0.33187859]
[1743437864495,0.30463346,603.92,602.63,0.33187859]
[1743437864697,1.312,604.01,602.63,0.33187859]
[1743437864698,0.30463346,604.0,602.63,0.33187859]
[1743437864896,0.28862063,603.92,602.63,0.33187859]
[1743437865092,0.30463346,603.91,602.63,0.33187859]
[1743437865596,0.28861465,603.91,602.63,0.33187859]
[1743437865796,0.30463346,603.9,602.63,0.33187859]
[1743437867896,0.59324213,603.89,602.63,0.33187859]
[1743437868095,0.30463346,603.88,602.63,0.33187859]
[1743437869497,0.28860867,603.89,602.63,0.33187859]
[1743437869799,0.33119162,603.88,602.63,0.33187859]
[1743437870394,0.30469263,603.87,602.63,0.33187859]
[1743437870593,0.30469263,603.86,602.63,0.33187859]
[1743437870798,0.30469263,603.85,602.63,0.33187859]
[1743437870994,0.30469263,603.84,602.63,0.33187859]
[1743437871196,0.30469263,603.83,602.63,0.33187859]
[1743437871394,0.30469263,603.82,602.63,0.33187859]
[1743437871596,0.30469263,603.81,602.63,0.33187859]
[1743437871798,0.30469263,603.8,602.63,0.33187859]
[1743437871998,0.30469263,603.79,602.63,0.33187859]
[1743437872194,0.30469263,603.78,602.63,0.33187859]
[1743437872392,0.30469263,603.85,602.63,0.33187859]
[1743437872598,0.30469263,603.84,602.63,0.33187859]
[1743437872799,0.33121905,603.83,602.63,0.33187859]
[1743437872995,0.30472766,603.82,602.63,0.33187859]
[1743437873196,0.33123002,603.81,602.63,0.33187859]
[1743437873395,0.30472766,603.8,602.63,0.33187859]
[1743437873602,0.33124099,603.79,602.63,0.33187859]
[1743437873794,0.30472766,603.78,602.63,0.33187859]
[1743437874504,0.33125196,603.77,602.63,0.33187859]
[1743437874702,0.30472766,603.76,602.63,0.33187859]
[1743437876204,0.3047419,603.75,602.63,0.33187859]
[1743437876399,0.3047419,603.74,602.63,0.33187859]
[1743437876604,0.33125196,603.77,602.63,0.33187859]
[1743437876605,0.3047419,603.76,602.63,0.33187859]
[1743437876807,0.28871162,603.73,602.63,0.33187859]
[1743437877007,0.3047419,603.72,602.63,0.33187859]
[1743437879910,0.3047419,603.76,602.63,0.33187859]
[1743437880110,0.28872121,603.71,602.63,0.33187859]
[1743437880409,0.30474353,603.7,602.63,0.33187859]
[1743437882909,0.30474353,603.69,602.63,0.33187859]
[1743437883105,0.30474353,603.68,602.63,0.33187859]
[1743437885918,0.30474353,603.67,602.63,0.33187859]
[1743437886116,0.59346953,603.67,602.63,0.33187859]
[1743437886314,0.30474353,603.66,602.63,0.33187859]
[1743437888718,0.30474353,603.65,602.63,0.33187859]
[1743437888914,0.30474353,603.64,602.63,0.33187859]
[1743437889518,0.30474212,603.63,602.63,0.33187859]
[1743437889717,0.30474212,603.62,602.63,0.33187859]
[1743437889919,0.30474212,603.64,602.63,0.33187859]
[1743437894522,0.30474922,603.63,602.63,0.33187859]
[1743437894721,0.30474922,603.64,602.63,0.33187859]
[1743437895026,0.30474922,603.63,602.63,0.33187859]
[1743437895228,0.30474922,603.64,602.63,0.33187859]
[1743437895429,0.30474922,603.63,602.63,0.33187859]
[1743437895629,0.30474922,603.64,602.63,0.33187859]
[1743437895828,0.30474922,603.63,602.63,0.33187859]
[1743437896127,0.30474922,603.62,602.63,0.33187859]
[1743437896321,0.30474922,603.61,602.63,0.33187859]
[1743437896522,0.30474922,603.64,602.63,0.33187859]
[1743437896724,0.30474922,603.63,602.63,0.33187859]
[1743437897027,0.30474922,603.62,602.63,0.33187859]
[1743437897227,0.28874157,603.65,602.63,0.33187859]
[1743437897428,0.30463267,603.64,602.63,0.33187859]
[1743437897922,0.28865056,603.63,602.63,0.33187859]
[1743437898627,0.30463201,603.62,602.63,0.33187859]
[1743437899329,0.28865056,603.63,602.63,0.33187859]
[1743437900523,0.98344284,604.21,602.63,0.33187859]
[1743437900724,0.98344284,604.17,602.63,0.33187859]
[1743437900924,0.28853449,603.62,602.63,0.33187859]
[1743437901130,0.98344284,604.15,602.63,0.33187859]
[1743437901327,0.98344284,604.12,602.63,0.33187859]
[1743437901522,0.28855004,603.61,602.63,0.33187859]
[1743437901829,0.30466635,603.6,602.63,0.33187859]
[1743437902029,0.30466635,603.59,602.63,0.33187859]
[1743437902822,0.96,603.58,602.63,0.33187859]
[1743437903026,0.30466635,603.57,602.63,0.33187859]
[1743437903831,0.28865535,603.56,602.63,0.33187859]
[1743437904126,0.30466635,603.55,602.63,0.33187859]
[1743437906031,0.28865535,603.56,602.63,0.33187859]
[1743437906234,0.30469777,603.55,602.63,0.33187859]
[1743437906725,0.96,603.58,602.63,0.33187859]
[1743437907130,0.28868049,603.54,602.63,0.33187859]
[1743437907838,0.30470487,603.53,602.63,0.33187859]
[1743437908040,0.28868049,603.54,602.63,0.33187859]
[1743437909437,0.30470072,603.53,602.63,0.33187859]
[1743437909832,0.59340516,603.52,602.63,0.33187859]
[1743437910035,0.30470072,603.51,602.63,0.33187859]
[1743437911039,0.28870444,603.52,602.63,0.33187859]
[1743437911338,0.30469807,603.51,602.63,0.33187859]
[1743437912537,0.28870444,603.52,602.63,0.33187859]
[1743437921642,0.96,603.58,602.63,0.33187859]
[1743437922040,0.28863021,603.57,602.63,0.33187859]
[1743437924546,0.96,603.58,602.63,0.33187859]
[1743437924847,0.28862542,603.56,602.63,0.33187859]
[1743437930649,0.96,603.58,602.63,0.33187859]
[1743437930845,0.28857636,603.55,602.63,0.33187859]
[1743437933649,0.96,603.58,602.63,0.33187859]
[1743437933845,0.28856439,603.54,602.63,0.33187859]
[1743437936449,0.96,603.58,602.63,0.33187859]
[1743437937049,0.28860388,603.57,602.63,0.33187859]
[1743437939655,0.96,603.58,602.63,0.33187859]
[1743437940058,0.28862662,603.56,602.63,0.33187859]
[1743437942654,0.96,603.58,602.63,0.33187859]
[1743437943055,0.28862901,603.55,602.63,0.33187859]
[1743437946962,1.271,603.54,602.63,0.33187859]
[1743437958983,0.04593029,603.54,602.63,0.33187859]
[1743437959177,0.28845795,603.8,602.63,0.33187859]
[1743437960678,0.98618654,604.59,602.63,0.33187859]
[1743437960981,0.98618654,604.57,602.63,0.33187859]
[1743437961184,0.28834084,603.79,602.63,0.33187859]
[1743437961375,1.31700564,604.56,602.63,0.33187859]
[1743437961578,0.63524231,604.55,602.63,0.33187859]
[1743437961775,0.28834562,603.79,602.63,0.33187859]
[1743437962081,0.33083005,604.54,602.63,0.33187859]
[1743437962382,0.28834801,603.79,602.63,0.33187859]
[1743437962581,0.98618654,604.52,602.63,0.33187859]
[1743437962781,0.63527622,604.51,602.63,0.33187859]
[1743437962981,0.28836593,603.78,602.63,0.33187859]
[1743437963182,0.33085194,604.5,602.63,0.33187859]
[1743437963378,0.30442133,604.49,602.63,0.33187859]
[1743437963579,0.28836593,603.77,602.63,0.33187859]
[1743437963977,0.33086289,604.48,602.63,0.33187859]
[1743437964177,0.28836473,603.76,602.63,0.33187859]
[1743437964582,0.33086289,604.48,602.63,0.33187859]
[1743437964777,0.28835995,603.76,602.63,0.33187859]
[1743437965083,0.33086289,604.48,602.63,0.33187859]
[1743437965284,1.139,604.03,602.63,0.33187859]
[1743437965580,0.28836115,603.76,602.63,0.33187859]
[1743437965778,1.139,604.03,602.63,0.33187859]
[1743437965976,0.28841372,603.76,602.63,0.33187859]
[1743437966375,1.139,604.03,602.63,0.33187859]
[1743437966583,0.28841253,603.76,602.63,0.33187859]
[1743437966983,1.139,604.03,602.63,0.33187859]
[1743437967180,0.28840536,603.79,602.63,0.33187859]
[1743437967582,1.139,604.03,602.63,0.33187859]
[1743437967784,0.2884209,603.79,602.63,0.33187859]
[1743437968183,1.139,604.03,602.63,0.33187859]
[1743437968378,0.28841492,603.8,602.63,0.33187859]
[1743437968782,1.139,604.03,602.63,0.33187859]
[1743437968976,0.30440516,604.02,602.63,0.33187859]
[1743437969179,0.28840655,603.82,602.64,1.99247475]
[1743437969379,1.139,604.03,602.66,0.33186207]
[1743437969582,0.30439403,604.02,602.67,4.8459246]
[1743437969782,0.2883731,603.85,602.69,0.33184555]
[1743437969983,1.139,604.03,602.69,0.33184555]
[1743437970184,0.30439536,604.02,602.69,0.33184555]
[1743437970385,0.28836832,603.85,602.69,3.1852954]
[1743437970587,1.139,604.03,602.69,3.1852954]
[1743437970788,0.30440718,604.02,602.69,3.1852954]
[1743437970984,0.28836593,603.85,602.69,3.1852954]
[1743437971184,1.139,604.03,602.69,3.1852954]
[1743437971391,0.30439536,604.02,602.69,3.1852954]
[1743437971594,0.28838026,603.84,602.69,3.1852954]
[1743437971893,1.139,604.03,602.69,3.1852954]
[1743437972193,0.28838265,603.83,602.69,0.33184555]
[1743437972396,1.139,604.03,602.69,0.33184555]
[1743437972593,0.30442237,604.02,602.69,0.33184555]
[1743437972795,0.28841851,603.82,602.69,0.33184555]
[1743437973094,1.139,604.03,602.69,0.33184555]
[1743437973292,0.28841492,603.81,602.69,0.33184555]
[1743437973692,1.139,604.03,602.69,0.33184555]
[1743437973893,0.28841014,603.8,602.69,0.33184555]
[1743437974294,1.139,604.03,602.69,0.33184555]
[1743437974492,0.28840655,603.79,602.69,0.33184555]
[1743437974894,1.139,604.03,602.69,0.33184555]
[1743437975090,0.28840297,603.78,602.69,0.33184555]
[1743437975488,1.139,604.03,602.69,0.33184555]
[1743437975692,0.28839938,603.78,602.69,0.33184555]
[1743437975995,1.139,604.03,602.69,0.33184555]
[1743437976293,0.28839819,603.78,602.69,0.33184555]
[1743437976695,1.139,604.03,602.69,0.33184555]
[1743437976895,0.2883731,603.89,602.69,0.33184555]
[1743437977287,1.139,604.03,602.69,0.33184555]
[1743437977494,0.28840536,603.89,602.69,0.33184555]
[1743437977888,1.139,604.03,602.69,0.33184555]
[1743437978093,0.28840177,603.9,602.69,0.33184555]
[1743437978390,1.139,604.03,602.69,0.33184555]
[1743437978788,0.2884711,603.9,602.69,0.33184555]
[1743437978994,1.139,604.03,602.69,0.33184555]
[1743437979296,0.2884711,603.9,602.69,0.33184555]
[1743437979497,1.139,604.03,602.69,0.33184555]
[1743437979791,0.28846871,603.9,602.69,0.33184555]
[1743437980195,1.139,604.03,602.69,0.33184555]
[1743437980495,0.28846871,603.9,602.69,0.33184555]
[1743437980694,1.139,604.03,602.69,0.33184555]
[1743437981191,0.28846752,603.9,602.69,0.33184555]
[1743437981391,1.139,604.03,602.69,0.33184555]
[1743437981796,0.28846273,604.02,602.69,0.33184555]
[1743437984797,1.139,604.03,602.69,0.33184555]
[1743437984991,0.2883946,604.01,602.69,0.33184555]
[1743437990596,1.139,604.03,602.69,0.33184555]
[1743437991097,0.28845317,604.02,602.69,0.33184555]
[1743437993607,1.139,604.03,602.69,0.33184555]
[1743437994005,0.28841851,604.01,602.69,0.33184555]
[1743437996602,1.139,604.03,602.69,0.33184555]
[1743437997009,0.28841253,604.0,602.69,0.33184555]
[1743437999607,1.139,604.03,602.69,0.33184555]
[1743437999911,0.28838743,603.99,602.69,0.33184555]
[1743438001517,1.139,604.03,602.69,0.33184555]
[1743438001916,0.2883719,604.02,602.69,0.33184555]
[1743438005710,1.139,604.03,602.69,0.33184555]
[1743438005912,0.28836951,604.01,602.69,0.33184555]
[1743438008721,1.139,604.03,602.69,0.33184555]
[1743438009022,0.2883504,604.0,602.69,0.33184555]
[1743438011523,1.139,604.03,602.69,0.33184555]
[1743438012021,0.28834203,603.99,602.69,0.33184555]
[1743438013821,1.139,604.03,602.7,1.99247475]
[1743438014017,1.139,604.03,602.72,0.33182904]
[1743438014220,0.33086289,604.48,602.73,1.99247475]
[1743438014414,0.30425731,604.47,602.75,0.33181252]
[1743438014618,0.28829545,604.13,602.76,1.99247475]
[1743438014822,0.28829545,604.13,602.78,0.33179601]
[1743438015022,0.98888536,604.83,602.78,0.33179601]
[1743438015222,0.28819398,604.13,602.78,0.33179601]
[1743438015616,0.33067689,604.82,602.83,2.53134656]
[1743438015820,0.28819637,604.13,602.85,0.33175748]
[1743438016122,1.31956225,604.82,602.85,0.33175748]
[1743438016323,0.28818802,604.13,602.85,0.33175748]
[1743438016722,0.33067689,604.82,602.85,0.33175748]
[1743438016723,0.98888536,604.66,602.86,4.8459246]
[1743438016919,0.28823456,604.12,602.88,0.33174097]
[1743438017120,0.28823456,604.12,602.89,1.99247475]
[1743438017321,0.98888536,604.64,602.91,0.33172446]
[1743438017622,0.28823814,604.11,602.92,1.99247475]
[1743438017818,0.28823814,604.11,602.94,0.33170796]
[1743438018024,1.065,604.63,602.95,1.99247475]
[1743438018227,0.28823576,604.1,602.97,2.53134656]
[1743438018427,0.28823576,604.1,602.99,0.33168045]
[1743438018622,2.05388536,604.63,603.0,1.99247475]
[1743438018823,0.28822979,604.09,603.02,0.33166395]
[1743438019125,2.05388536,604.63,603.03,1.99247475]
[1743438019325,0.30431898,604.62,603.05,0.33164745]
[1743438019526,0.2882274,604.08,603.06,1.99247475]
[1743438019725,2.05388536,604.63,603.08,0.33163096]
[1743438019925,0.30432089,604.62,603.09,1.99247475]
[1743438020223,0.28822263,604.07,603.11,0.33161446]
[1743438020429,1.065,604.63,603.12,2.85344985]
[1743438020627,0.30431876,604.62,603.14,0.33159797]
[1743438020827,0.28821785,604.06,603.14,0.33159797]
[1743438021028,0.30431876,604.62,603.14,0.33159797]
[1743438021227,0.30431876,604.61,603.14,0.33159797]
[1743438021528,0.30431876,604.6,603.14,0.33159797]
[1743438022028,0.59253184,604.59,603.14,0.33159797]
[1743438022229,0.30431876,604.58,603.14,0.33159797]
[1743438026833,0.30431876,604.57,603.14,0.33159797]
[1743438027028,0.30431876,604.56,603.14,0.33159797]
[1743438029835,0.30431876,604.55,603.14,0.33159797]
[1743438030032,0.30431876,604.54,603.14,0.33159797]
[1743438032738,0.98911012,604.49,603.14,0.33159797]
[1743438032937,1.29342888,604.48,603.14,0.33159797]
[1743438033237,0.98911012,604.45,603.14,0.33159797]
[1743438033442,0.98911012,604.41,603.14,0.33159797]
[1743438033643,1.2931576,604.4,603.14,0.33159797]
[1743438033937,0.30431876,604.39,603.14,0.33159797]
[1743438034139,1.2931576,604.44,603.14,0.33159797]
[1743438034342,0.30431876,604.43,603.14,0.33159797]
[1743438034547,0.30431876,604.44,603.14,0.33159797]
[1743438034744,0.33089026,604.43,603.14,0.33159797]
[1743438034938,0.30431876,604.42,603.14,0.33159797]
[1743438035139,0.3309012,604.41,603.14,0.33159797]
[1743438035446,0.30431876,604.4,603.14,0.33159797]
[1743438035646,0.33091215,604.39,603.14,0.33159797]
[1743438035846,0.30431876,604.38,603.14,0.33159797]
[1743438036046,0.98832714,604.35,603.14,0.33159797]
[1743438036241,1.38550491,604.34,603.14,0.33159797]
[1743438036548,0.63544992,604.33,603.14,0.33159797]
[1743438036746,1.081,604.34,603.14,0.33159797]
[1743438036747,0.63545539,604.32,603.14,0.33159797]
[1743438036947,0.63546087,604.31,603.14,0.33159797]
[1743438037146,0.63546635,604.3,603.14,0.33159797]
[1743438037346,0.63547182,604.29,603.14,0.33159797]
[1743438037547,0.6354773,604.28,603.14,0.33159797]
[1743438037744,0.63548278,604.27,603.14,0.33159797]
[1743438037945,0.63548826,604.26,603.14,0.33159797]
[1743438038152,0.30450491,604.25,603.14,0.33159797]
[1743438038750,0.30450491,604.24,603.14,0.33159797]
[1743438039044,0.30450491,604.23,603.14,0.33159797]
[1743438039248,0.30450491,604.22,603.14,0.33159797]
[1743438039442,0.28849861,604.24,603.14,0.33159797]
[1743438039443,0.63551565,604.21,603.14,0.33159797]
[1743438039646,0.63552112,604.2,602.21,1.99247475]
[1743438039846,0.6355266,604.19,602.23,0.33209903]
[1743438040048,0.63553208,604.18,602.24,1.99247475]
[1743438040248,0.30450491,604.17,602.26,0.33208248]
[1743438040449,0.33102717,604.18,602.26,0.33208248]
[1743438040450,0.63554304,604.16,602.27,1.99247475]
[1743438040749,0.30450491,604.15,602.29,0.33206594]
[1743438040946,1.29032243,604.14,602.3,1.99247475]
[1743438041146,0.98581752,604.12,602.31,1.99247475]
[1743438041342,0.63557044,604.11,602.33,0.33204389]
[1743438041548,0.63557592,604.1,602.33,0.33204389]
[1743438041750,0.6355814,604.09,602.33,0.33204389]
[1743438042053,0.30450491,604.08,602.33,0.33204389]
[1743438042251,0.30450491,604.07,602.33,0.33204389]
[1743438042551,0.63559784,604.06,602.33,0.33204389]
[1743438042752,0.30450491,604.05,602.33,0.33204389]
[1743438043250,0.30450491,604.04,602.33,0.33204389]
[1743438043550,0.63561429,604.03,602.33,0.33204389]
[1743438043744,0.63561977,604.02,602.33,0.33204389]
[1743438043944,0.30450491,604.01,602.33,0.33204389]
[1743438044148,0.30450491,604.0,602.33,0.33204389]
[1743438044346,0.30450491,603.99,602.33,0.33204389]
[1743438044547,0.30450491,603.98,602.33,0.33204389]
[1743438044745,0.30460799,603.97,602.33,0.33204389]
[1743438044945,0.30460799,603.96,602.33,0.33204389]
[1743438045148,0.30460799,604.01,602.33,0.33204389]
[1743438045346,0.30460799,604.0,602.33,0.33204389]
[1743438045545,0.30460799,603.99,602.33,0.33204389]
[1743438045750,0.30460799,603.98,602.33,0.33204389]
[1743438045951,0.30460799,604.01,602.33,0.33204389]
[1743438046152,0.30460799,604.0,602.33,0.33204389]
[1743438046345,0.30460799,604.01,602.33,0.33204389]
[1743438046549,0.30457199,604.0,602.33,0.33204389]
[1743438046749,0.30457199,603.99,602.33,0.33204389]
[1743438046950,0.30457199,603.98,602.33,0.33204389]
[1743438047151,0.30457199,603.97,602.33,0.33204389]
[1743438047350,0.30457199,603.96,602.33,0.33204389]
[1743438047651,0.30457199,603.95,602.33,0.33204389]
[1743438047851,0.30457199,604.01,602.33,0.33204389]
[1743438048051,0.30457199,604.0,602.33,0.33204389]
[1743438048249,0.30457552,603.99,602.33,0.33204389]
[1743438048451,0.30457552,604.01,602.33,0.33204389]
[1743438049954,0.30455473,604.0,602.33,0.33204389]
[1743438050148,0.30455473,603.99,602.33,0.33204389]
[1743438050553,0.30455473,604.01,602.33,0.33204389]
[1743438051049,0.30455473,603.98,602.33,0.33204389]
[1743438051253,0.28860149,604.0,602.33,0.33204389]
[1743438051254,0.30455473,603.97,602.33,0.33204389]
[1743438051555,0.30455473,603.96,602.33,0.33204389]
[1743438051745,0.30455473,603.99,602.33,0.33204389]
[1743438051953,0.28860149,604.0,602.33,0.33204389]
[1743438052756,0.30456536,603.99,602.33,0.33204389]
[1743438053848,0.30456536,604.01,602.33,0.33204389]
[1743438054054,0.28860627,603.98,602.33,0.33204389]
[1743438054353,0.30456536,603.97,602.33,0.33204389]
[1743438059956,0.30456536,603.96,602.33,0.33204389]
[1743438060160,0.30456536,603.95,602.33,0.33204389]
[1743438063063,0.59317522,603.94,602.33,0.33204389]
[1743438063263,0.30456536,603.93,602.33,0.33204389]
[1743438067361,0.28860986,603.94,602.33,0.33204389]
[1743438068665,2.52584554,604.45,602.33,0.33204389]
[1743438068860,0.30441649,604.44,602.33,0.33204389]
[1743438069066,0.28839699,603.93,602.33,0.33204389]
[1743438069364,2.52584554,604.45,602.33,0.33204389]
[1743438069561,0.28842568,603.92,602.33,0.33204389]
[1743438069767,0.977,604.45,602.33,0.33204389]
[1743438070060,0.28842209,603.91,602.33,0.33204389]
[1743438070561,0.33088478,604.44,602.33,0.33204389]
[1743438070765,0.28842209,603.9,602.33,0.33204389]
[1743438071067,0.33088478,604.44,602.33,0.33204389]
[1743438071360,0.28842329,603.89,602.33,0.33204389]
[1743438071760,0.33088478,604.44,602.33,0.33204389]
[1743438072066,0.28843046,603.88,602.33,0.33204389]
[1743438072262,0.33088478,604.44,602.33,0.33204389]
[1743438072466,0.30446229,604.43,602.33,0.33204389]
[1743438072667,0.28843046,603.87,602.33,0.33204389]
[1743438072868,0.33089573,604.42,602.33,0.33204389]
[1743438073064,0.3044623,604.41,602.33,0.33204389]
[1743438073268,0.28843285,603.86,602.33,0.33204389]
[1743438073468,0.33090668,604.4,602.33,0.33204389]
[1743438073864,0.28843524,603.85,602.33,0.33204389]
[1743438074070,0.33090668,604.4,602.33,0.33204389]
[1743438074271,0.3044642,604.39,602.33,0.33204389]
[1743438074463,0.28843643,603.84,602.33,0.33204389]
[1743438074664,0.33091763,604.38,602.33,0.33204389]
[1743438074867,0.30446126,604.37,602.33,0.33204389]
[1743438075073,0.28843643,603.83,602.33,0.33204389]
[1743438075272,0.33092858,604.36,602.33,0.33204389]
[1743438075570,0.28843882,603.82,602.33,0.33204389]
[1743438076067,0.33092858,604.36,602.33,0.33204389]
[1743438076266,0.28844122,603.81,602.33,0.33204389]
[1743438076473,0.33092858,604.36,602.33,0.33204389]
[1743438076671,0.30446177,604.35,602.33,0.33204389]
[1743438076870,0.28844241,603.8,602.33,0.33204389]
[1743438077065,0.33093953,604.34,602.33,0.33204389]
[1743438077271,0.30446148,604.33,602.33,0.33204389]
[1743438077465,0.28845317,603.79,602.33,0.33204389]
[1743438077772,0.33093953,604.34,602.33,0.33204389]
[1743438078073,0.28844241,603.78,602.33,0.33204389]
[1743438078270,0.33093953,604.34,602.33,0.33204389]
[1743438078464,0.30446268,604.33,602.33,0.33204389]
[1743438078669,0.28843882,603.77,602.33,0.33204389]
[1743438078967,0.30446268,604.33,602.33,0.33204389]
[1743438078968,0.33093953,604.34,602.33,0.33204389]
[1743438079172,0.28845197,603.76,602.33,0.33204389]
[1743438079569,0.33093953,604.34,602.33,0.33204389]
[1743438079766,0.28846154,603.75,602.33,0.33204389]
[1743438080166,0.33093953,604.34,602.33,0.33204389]
[1743438080471,0.28845676,603.74,602.33,0.33204389]
[1743438080673,0.33093953,604.34,602.33,0.33204389]
[1743438081071,0.28845676,603.73,602.33,0.33204389]
[1743438081271,0.33093953,604.34,602.33,0.33204389]
[1743438081472,0.30448042,604.33,602.33,0.33204389]
[1743438081773,0.28845676,603.72,602.33,0.33204389]
[1743438081966,0.33095048,604.32,602.33,0.33204389]
[1743438082168,0.28845437,603.71,602.33,0.33204389]
[1743438082568,0.33095048,604.32,602.33,0.33204389]
[1743438082769,0.2884448,603.7,602.33,0.33204389]
[1743438083172,0.33095048,604.32,602.33,0.33204389]
[1743438083374,0.288446,603.69,602.33,0.33204389]
[1743438083675,0.33095048,604.32,602.33,0.33204389]
[1743438083873,0.30447436,604.31,602.33,0.33204389]
[1743438084070,0.288446,603.68,602.33,0.33204389]
[1743438084272,0.33095048,604.32,602.33,0.33204389]
[1743438084470,0.30447808,604.31,602.33,0.33204389]
[1743438084670,0.28844122,603.67,602.33,0.33204389]
[1743438084870,0.33095048,604.32,602.33,0.33204389]
[1743438085074,0.30447793,604.31,602.33,0.33204389]
[1743438085277,0.28844122,603.66,602.33,0.33204389]
[1743438085471,0.33095048,604.32,602.33,0.33204389]
[1743438085676,0.28844122,603.65,602.33,0.33204389]
[1743438085977,0.33095048,604.32,602.33,0.33204389]
[1743438086172,0.30447764,604.31,602.33,0.33204389]
[1743438086371,0.28843404,603.65,602.33,0.33204389]
[1743438086570,0.33095048,604.32,602.33,0.33204389]
[1743438086774,0.30447706,604.31,602.33,0.33204389]
[1743438087073,0.28843404,603.65,602.33,0.33204389]
[1743438087274,0.33095048,604.32,602.33,0.33204389]
[1743438087470,0.28841492,603.73,602.33,0.33204389]
[1743438087877,0.33095048,604.32,602.33,0.33204389]
[1743438088076,0.28840894,603.73,602.33,0.33204389]
[1743438088477,0.33095048,604.32,602.33,0.33204389]
[1743438088677,0.28841014,603.73,602.33,0.33204389]
[1743438089081,0.33095048,604.32,602.33,0.33204389]
[1743438089274,0.28840894,603.73,602.33,0.33204389]
[1743438089674,0.33095048,604.32,602.33,0.33204389]
[1743438089882,0.30443392,604.31,602.33,0.33204389]
[1743438090073,0.28840894,603.73,602.33,0.33204389]
[1743438090275,0.33095048,604.32,602.33,0.33204389]
[1743438090478,0.30443375,604.31,602.33,0.33204389]
[1743438090681,0.28840894,603.73,602.34,2.85344985]
[1743438090881,0.33095048,604.32,602.36,0.33202735]
[1743438091081,0.28840177,603.73,602.36,0.33202735]
[1743438091474,0.33095048,604.32,602.36,0.33202735]
[1743438091676,0.28840058,603.73,602.36,2.3245021]
[1743438091882,0.28840058,603.73,602.36,2.86337391]
[1743438092077,0.33095048,604.32,602.36,4.85584866]
[1743438092275,0.28839938,603.73,602.37,4.8459246]
[1743438092479,0.28839938,603.73,602.38,1.99247475]
[1743438092681,0.33095048,604.32,602.4,0.33200531]
[1743438092981,0.30442343,604.31,602.4,0.33200531]
[1743438093978,0.28838982,604.3,602.4,0.33200531]
[1743438094179,0.30442343,604.29,602.4,2.32448006]
[1743438094583,0.30442881,604.28,602.4,2.32448006]
[1743438094876,0.30442881,604.27,602.4,0.33200531]
[1743438095076,0.30442881,604.26,602.4,0.33200531]
[1743438095284,0.30442881,604.29,602.4,0.33200531]
[1743438095480,0.30442881,604.28,602.4,0.33200531]
[1743438095685,0.30442881,604.29,602.4,0.33200531]
[1743438095888,0.30442881,604.28,602.4,0.33200531]
[1743438096086,0.28840297,604.27,602.4,0.33200531]
[1743438096483,0.30442881,604.26,602.4,0.33200531]
[1743438097591,0.28840297,604.27,602.4,0.33200531]
[1743438098688,0.33095048,604.32,602.4,0.33200531]
[1743438098891,0.28835995,604.26,602.4,0.33200531]
[1743438101793,0.33095048,604.32,602.4,0.33200531]
[1743438102091,0.28836115,604.25,602.47,2.53134656]
[1743438102392,0.28836115,604.25,602.49,0.33195571]
[1743438104801,0.33095048,604.32,602.49,0.33195571]
[1743438104995,0.28834681,604.24,602.49,0.33195571]
[1743438105404,0.30435815,604.23,602.49,0.33195571]
[1743438105602,0.30435815,604.23,602.56,2.53134656]
[1743438106002,0.30435815,604.23,602.58,0.33190613]
[1743438106798,0.28834681,604.24,602.58,0.33190613]
[1743438107297,0.28834681,604.24,602.59,1.99247475]
[1743438107499,0.3043401,604.23,602.61,0.33188961]
[1743438107697,0.3043401,604.23,602.62,1.99247475]
[1743438107901,0.33095048,604.32,602.41,2.85344985]
[1743438107902,0.59268094,604.22,602.64,0.33187309]
[1743438108202,0.3043401,604.21,602.65,4.8459246]
[1743438108401,0.3043401,604.21,602.67,0.33185657]
[1743438108701,0.3043401,604.21,602.68,1.99247475]
[1743438109003,0.3043401,604.21,602.7,0.33184005]
[1743438109197,0.3043401,604.21,602.71,1.99247475]
[1743438109400,0.3043401,604.21,602.73,0.33182353]
[1743438109697,0.3043401,604.21,602.74,1.99247475]
[1743438109904,0.3043401,604.21,602.76,2.86315358]
[1743438110104,0.3043401,604.21,602.78,0.33179601]
[1743438110298,0.3043401,604.21,602.79,1.99247475]
[1743438110502,0.3043401,604.21,602.81,0.33177949]
[1743438110901,0.28831934,604.2,602.81,0.33177949]
[1743438113703,0.33095048,604.32,602.81,0.33177949]
[1743438114002,0.30435821,604.31,602.81,0.33177949]
[1743438114205,0.5926262,604.31,602.81,0.33177949]
[1743438114404,0.30435821,604.3,602.81,0.33177949]
[1743438115505,1.072,604.29,602.81,0.33177949]
[1743438115907,0.30435821,604.28,602.81,0.33177949]
[1743438117009,0.28836473,604.27,602.81,0.33177949]
[1743438117502,0.30437305,604.26,602.81,0.33177949]
[1743438119908,0.2883719,604.25,602.81,0.33177949]
[1743438120309,0.30437305,604.24,602.81,0.33177949]
[1743438120706,0.2883719,604.25,602.81,0.33177949]
[1743438120903,0.30436233,604.24,602.81,0.33177949]
[1743438121806,0.30436233,604.24,602.82,1.99247475]
[1743438122007,0.30436233,604.24,602.83,1.99247475]